fUSD/lending_fUSD_20250301
["ID","MTS","AMOUNT","RATE_DAILY","PERIOD"]
[355020802,1740870636007,-500.0,0.00024657,2]
[355020804,1740870636016,-500.0,0.00024657,2]
[355020806,1740870636026,-500.0,0.00024657,2]
[355020808,1740870636035,-500.0,0.00024657,2]
[355020810,1740870636044,-500.0,0.00024657,2]
[355020812,1740870636053,-151.0,0.00024657,7]
[355020814,1740870636063,-151.0,0.00024657,7]
[355020816,1740870636075,-151.0,0.00024657,7]
[355020818,1740870636086,-151.0,0.00024657,7]
[355020820,1740870636096,-500.0,0.00024657,2]
[355020821,1740870636107,-500.0,0.00024657,2]
[355020823,1740870636117,-500.0,0.00024657,2]
[355020826,1740870636127,-500.0,0.00024657,2]
[355020827,1740870636137,-500.0,0.00024657,2]
[355020830,1740870636149,-500.0,0.00024657,2]
[355020831,1740870636159,-500.0,0.00024657,2]
[355020834,1740870636169,-151.0,0.00024657,7]
[355020835,1740870636179,-248.325476,0.00024657,7]
[355020837,1740870636188,-500.0,0.00024657,2]
[355020839,1740870636198,-151.0,0.00024657,7]
[355020841,1740870636208,-151.0,0.00024657,7]
[355020843,1740870636217,-151.0,0.00024657,7]
[355020845,1740870636226,-151.0,0.00024657,7]
[355020847,1740870636236,-151.0,0.00024657,7]
[355020849,1740870636246,-151.0,0.00024657,7]
[355020851,1740870636256,-151.0,0.00024657,7]
[355020853,1740870636266,-151.0,0.00024657,7]
[355020855,1740870636276,-151.0,0.00024657,7]
[355020857,1740870636286,-151.0,0.00024657,7]
[355020859,1740870636296,-264.280157,0.00024657,7]
[355020861,1740870636306,-500.0,0.00024657,2]
[355020875,1740870636424,-151.0,0.00024657,7]
[355020878,1740870636449,-151.0,0.00024657,7]
[355020880,1740870636458,-219.024794,0.00024657,7]
[355020881,1740870636468,-554.05,0.00024657,2]
[355020883,1740870636478,-500.0,0.00024657,2]
[355020885,1740870636487,-500.0,0.00024657,2]
[355020887,1740870636497,-507.92,0.00024657,2]
[355020889,1740870636507,-500.0,0.00024657,2]
[355020891,1740870636517,-994.66,0.00024657,2]
[355020893,1740870636527,-500.0,0.00024657,2]
[355020895,1740870636536,-500.0,0.00024657,2]
[355020897,1740870636545,-500.0,0.00024657,2]
[355020899,1740870636555,-500.0,0.00024657,2]
[355020901,1740870636565,-1102.93,0.00024657,2]
[355020903,1740870636574,-500.0,0.00024657,2]
[355020905,1740870636584,-190.529404,0.00024657,7]
[355020907,1740870636595,-2085.02,0.00024657,2]
[355020909,1740870636605,-500.0,0.00024657,2]
[355020911,1740870636615,-500.0,0.00024657,2]
[355020912,1740870636624,-500.0,0.00024657,2]
[355020913,1740870636634,-500.0,0.00024657,2]
[355020915,1740870636643,-1817.23,0.00024657,2]
[355020916,1740870636653,-500.0,0.00024657,2]
[355020917,1740870636662,-500.0,0.00024657,2]
[355020918,1740870636672,-500.0,0.00024657,2]
[355020919,1740870636681,-500.0,0.00024657,2]
[355020920,1740870636691,-500.0,0.00024657,2]
[355020921,1740870636701,-500.0,0.00024657,2]
[355020922,1740870636710,-500.0,0.00024657,2]
[355020923,1740870636720,-500.0,0.00024657,2]
[355020924,1740870636730,-560.07,0.00024657,2]
[355020925,1740870636739,-2260.68,0.00024657,2]
[355020926,1740870636749,-500.0,0.00024657,2]
[355020927,1740870636758,-2429.62,0.00024657,2]
[355020928,1740870636768,-500.0,0.00024657,2]
[355020929,1740870636778,-151.0,0.00024657,7]
[355020930,1740870636787,-151.0,0.00024657,7]
[355020931,1740870636797,-155.650989,0.00024657,7]
[355020932,1740870636806,-500.0,0.00024657,2]
[355020933,1740870636816,-500.0,0.00024657,2]
[355020934,1740870636826,-500.0,0.00024657,2]
[355020935,1740870636836,-500.0,0.00024657,2]
[355020936,1740870636847,-151.728909,0.00024657,7]
[355020937,1740870636856,-2040.04,0.00024657,2]
[355020938,1740870636866,-500.0,0.00024657,2]
[355020939,1740870636876,-500.0,0.00024657,2]
[355020940,1740870636885,-500.0,0.00024657,2]
[355020941,1740870636895,-500.0,0.00024657,2]
[355020942,1740870636904,-984.05,0.00024657,2]
[355020943,1740870636914,-151.0,0.00024657,7]
[355020944,1740870636923,-1305.14,0.00024657,2]
[355020945,1740870636932,-152.042447,0.00024657,7]
[355020946,1740870636942,-2329.85,0.00024657,2]
[355020947,1740870636952,-500.0,0.00024657,2]
[355020948,1740870636961,-500.0,0.00024657,2]
[355020949,1740870636971,-500.0,0.00024657,2]
[355020950,1740870636980,-519.03,0.00024657,2]
[355020951,1740870636990,-151.0,0.00024657,7]
[355020952,1740870637000,-151.0,0.00024657,7]
[355020953,1740870637010,-3500.0,0.00024657,7]
[355020954,1740870637020,-500.0,0.00024657,2]
[355020955,1740870637030,-3500.0,0.00024657,7]
[355020956,1740870637039,-915.61,0.00024657,2]
[355020957,1740870637049,-3500.0,0.00024657,7]
[355020958,1740870637059,-3500.0,0.00024657,7]
[355020959,1740870637072,-500.0,0.00024657,2]
[355020960,1740870637082,-3500.0,0.00024657,7]
[355020961,1740870637091,-3500.0,0.00024657,7]
[355020962,1740870637101,-500.0,0.00024657,2]
[355020963,1740870637112,-3500.0,0.00024657,7]
[355020964,1740870637121,-3500.0,0.00024657,7]
[355020965,1740870637131,-246.10701192,0.00024657,2]
[355020966,1740870637142,-3500.0,0.00024657,7]
[355020967,1740870637151,-528.74,0.00024657,2]
[355020968,1740870637161,-500.0,0.00024657,2]
[355020969,1740870637170,-506.61481016,0.00024657,2]
[355020970,1740870637179,-653.93,0.00024657,2]
[355020971,1740870637189,-2306.77,0.00024657,2]
[355020972,1740870637199,-1646.57,0.00024657,2]
[355020973,1740870637208,-500.0,0.00024657,2]
[355020974,1740870637218,-500.0,0.00024657,2]
[355020975,1740870637228,-500.0,0.00024657,2]
[355020976,1740870637238,-500.0,0.00024657,2]
[355020977,1740870637248,-637.41,0.00024657,2]
[355020978,1740870637258,-151.0,0.00024657,7]
[355020979,1740870637267,-500.0,0.00024657,2]
[355020981,1740870637277,-151.0,0.00024657,7]
[355020982,1740870637286,-500.0,0.00024657,2]
[355020984,1740870637296,-153.066563,0.00024657,7]
[355020986,1740870637306,-500.0,0.00024657,2]
[355020987,1740870637316,-572.85,0.00024657,2]
[355020988,1740870637326,-2397.1,0.00024657,2]
[355020989,1740870637335,-579.05,0.00024657,2]
[355020990,1740870637346,-1853.26,0.00024657,2]
[355020991,1740870637356,-1042.84,0.00024657,2]
[355020992,1740870637365,-724.79,0.00024657,2]
[355020993,1740870637374,-500.0,0.00024657,2]
[355020994,1740870637384,-500.0,0.00024657,2]
[355020995,1740870637394,-151.0,0.00024657,7]
[355020996,1740870637404,-500.0,0.00024657,2]
[355020997,1740870637414,-500.0,0.00024657,2]
[355020998,1740870637424,-216.86124174,0.00024657,2]
[355020999,1740870637433,-544.81,0.00024657,2]
[355021000,1740870637443,-500.0,0.00024657,2]
[355021001,1740870637453,-634.03,0.00024657,2]
[355021002,1740870637463,-500.0,0.00024657,2]
[355021003,1740870637472,-1225.41,0.00024657,2]
[355021004,1740870637482,-500.0,0.00024657,2]
[355021005,1740870637492,-533.76,0.00024657,2]
[355021006,1740870637501,-500.0,0.00024657,2]
[355021007,1740870637511,-500.0,0.00024657,2]
[355021008,1740870637520,-2129.02,0.00024657,2]
[355021009,1740870637530,-500.0,0.00024657,2]
[355021010,1740870637539,-650.4,0.00024657,2]
[355021011,1740870637549,-1048.62,0.00024657,2]
[355021012,1740870637559,-2414.77,0.00024657,2]
[355021013,1740870637568,-1519.99,0.00024657,2]
[355021014,1740870637578,-500.0,0.00024657,2]
[355021015,1740870637587,-500.0,0.00024657,2]
[355021016,1740870637597,-595.76,0.00024657,2]
[355021017,1740870637607,-546.6,0.00024657,2]
[355021018,1740870637617,-816.62,0.00024657,2]
[355021019,1740870637627,-500.0,0.00024657,2]
[355021020,1740870637636,-548.18,0.00024657,2]
[355021021,1740870637647,-500.0,0.00024657,2]
[355021022,1740870637656,-500.0,0.00024657,2]
[355021023,1740870637666,-500.0,0.00024657,2]
[355021024,1740870637676,-500.0,0.00024657,2]
[355021025,1740870637686,-574.67,0.00024657,2]
[355021026,1740870637695,-500.0,0.00024657,2]
[355021027,1740870637705,-500.0,0.00024657,2]
[355021028,1740870637714,-500.0,0.00024657,2]
[355021029,1740870637724,-1263.54,0.00024657,2]
[355021030,1740870637733,-3052.79,0.00024657,2]
[355021031,1740870637743,-1162.75,0.00024657,2]
[355021032,1740870637752,-2635.68,0.00024657,2]
[355021033,1740870637762,-204.605139,0.00024657,7]
[355021034,1740870637772,-2485.01,0.00024657,2]
[355021035,1740870637782,-500.0,0.00024657,2]
[355021036,1740870637791,-500.0,0.00024657,2]
[355021037,1740870637800,-1849.01,0.00024657,2]
[355021038,1740870637810,-530.38,0.00024657,2]
[355021039,1740870637820,-151.0,0.00024657,7]
[355021040,1740870637830,-151.0,0.00024657,7]
[355021041,1740870637841,-151.0,0.00024657,7]
[355021042,1740870637851,-151.0,0.00024657,7]
[355021043,1740870637862,-306.33682996,0.00024657,2]
[355021044,1740870637872,-690.67,0.00024657,2]
[355021045,1740870637883,-2498.34,0.00024657,2]
[355021046,1740870637893,-500.0,0.00024657,2]
[355021047,1740870637902,-2501.68,0.00024657,2]
[355021048,1740870637912,-2453.66,0.00024657,2]
[355021049,1740870637922,-500.0,0.00024657,2]
[355021050,1740870637932,-1306.21,0.00024657,2]
[355021052,1740870637941,-500.0,0.00024657,2]
[355021054,1740870637950,-601.03,0.00024657,2]
[355021056,1740870637960,-500.0,0.00024657,2]
[355021058,1740870637969,-500.0,0.00024657,2]
[355021060,1740870637979,-500.0,0.00024657,2]
[355021062,1740870637988,-606.9,0.00024657,2]
[355021064,1740870637998,-1000.0,0.00024657,2]
[355021065,1740870638007,-745.69,0.00024657,2]
[355021067,1740870638017,-500.0,0.00024657,2]
[355021070,1740870638027,-701.2,0.00024657,2]
[355021072,1740870638036,-2725.88,0.00024657,2]
[355021073,1740870638046,-2886.33,0.00024657,2]
[355021075,1740870638056,-500.0,0.00024657,2]
[355021077,1740870638069,-837.72,0.00024657,2]
[355021079,1740870638078,-2665.25,0.00024657,2]
[355021081,1740870638088,-500.0,0.00024657,2]
[355021083,1740870638098,-500.0,0.00024657,2]
[355021085,1740870638109,-755.88,0.00024657,2]
[355021088,1740870638120,-2078.68,0.00024657,2]
[355021089,1740870638129,-500.0,0.00024657,2]
[355021091,1740870638140,-553.15,0.00024657,2]
[355021093,1740870638149,-3249.86,0.00024657,2]
[355021095,1740870638159,-500.0,0.00024657,2]
[355021097,1740870638168,-500.0,0.00024657,2]
[355021099,1740870638178,-500.0,0.00024657,2]
[355021101,1740870638188,-1120.74,0.00024657,2]
[355021103,1740870638198,-500.0,0.00024657,2]
[355021106,1740870638208,-2645.53,0.00024657,2]
[355021108,1740870638217,-500.0,0.00024657,2]
[355021109,1740870638227,-3207.0,0.00024657,2]
[355021111,1740870638236,-500.0,0.00024657,2]
[355021114,1740870638246,-2106.53,0.00024657,2]
[355021115,1740870638256,-500.0,0.00024657,2]
[355021118,1740870638266,-500.0,0.00024657,2]
[355021120,1740870638276,-539.33,0.00024657,2]
[355021121,1740870638285,-702.7,0.00024657,2]
[355021137,1740870638422,-653.98,0.00024657,2]
[355021139,1740870638432,-2500.51,0.00024657,2]
[355021141,1740870638441,-2985.87,0.00024657,2]
[355021143,1740870638450,-500.0,0.00024657,2]
[355021145,1740870638459,-421.8217826,0.00024657,2]
[355021147,1740870638468,-500.0,0.00024657,2]
[355021149,1740870638477,-1610.29,0.00024657,2]
[355021151,1740870638487,-500.0,0.00024657,2]
[355021153,1740870638496,-500.0,0.00024657,2]
[355021155,1740870638506,-500.0,0.00024657,2]
[355021157,1740870638516,-1337.47,0.00024657,2]
[355021159,1740870638526,-741.36,0.00024657,2]
[355021161,1740870638537,-500.0,0.00024657,2]
[355021163,1740870638548,-2632.15,0.00024657,2]
[355021165,1740870638557,-2059.93,0.00024657,2]
[355021167,1740870638567,-845.71,0.00024657,2]
[355021168,1740870638576,-939.16,0.00024657,2]
[355021170,1740870638586,-500.0,0.00024657,2]
[355021172,1740870638597,-500.0,0.00024657,2]
[355021174,1740870638607,-3331.2,0.00024657,2]
[355021176,1740870638617,-589.12,0.00024657,2]
[355021178,1740870638626,-683.45,0.00024657,2]
[355021180,1740870638635,-500.0,0.00024657,2]
[355021182,1740870638645,-500.0,0.00024657,2]
[355021184,1740870638655,-500.0,0.00024657,2]
[355021186,1740870638665,-500.0,0.00024657,2]
[355021188,1740870638675,-970.75,0.00024657,2]
[355021191,1740870638686,-838.27,0.00024657,2]
[355021193,1740870638696,-2374.15,0.00024657,2]
[355021195,1740870638706,-274.5,0.00024712,30]
[355021197,1740870638716,-151.0,0.00024796,7]
[355021199,1740870638725,-180.32622,0.00024796,7]
[355021200,1740870638735,-3742.72301446,0.00024797,3]
[355021203,1740870638745,-161.00670323,0.00024831,2]
[355021205,1740870638755,-16700.0,0.000249,2]
[355021207,1740870638764,-151.0,0.000249,7]
[355021209,1740870638774,-151.0,0.000249,7]
[355021211,1740870638783,-151.0,0.0002493,7]
[355021213,1740870638793,-151.0,0.0002493,7]
[355021215,1740870638803,-151.0,0.0002493,7]
[355021217,1740870638812,-155.927564,0.00024931,7]
[355021218,1740870638821,-245.7944,0.00024931,7]
[355021220,1740870638832,-151.0,0.00024931,7]
[355021222,1740870638841,-192.261589,0.00024931,7]
[355021225,1740870638850,-151.0,0.00024931,7]
[355021227,1740870638860,-151.0,0.00024931,7]
[355021229,1740870638870,-154.102602,0.00024931,7]
[355021231,1740870638881,-500.0,0.00024931,2]
[355021233,1740870638891,-500.0,0.00024931,2]
[355021235,1740870638900,-500.0,0.00024931,2]
[355021237,1740870638909,-500.0,0.00024931,2]
[355021239,1740870638921,-500.0,0.00024931,2]
[355021241,1740870638932,-500.0,0.00024931,2]
[355021243,1740870638942,-500.0,0.00024931,2]
[355021245,1740870638952,-283.369062,0.00024931,7]
[355021247,1740870638961,-151.0,0.00024931,7]
[355021249,1740870638971,-151.0,0.00024931,7]
[355021251,1740870638980,-151.0,0.00024931,7]
[355021253,1740870638989,-151.0,0.00024931,7]
[355021255,1740870638999,-500.0,0.00024931,2]
[355021257,1740870639008,-500.0,0.00024931,2]
[355021259,1740870639018,-500.0,0.00024931,2]
[355021261,1740870639027,-231.732911,0.00024931,7]
[355021263,1740870639037,-231.732911,0.00024931,7]
[355021265,1740870639047,-231.732911,0.00024931,7]
[355021267,1740870639056,-231.732911,0.00024931,7]
[355021269,1740870639068,-500.0,0.00024931,2]
[355021271,1740870639079,-500.0,0.00024931,2]
[355021273,1740870639090,-500.0,0.00024931,2]
[355021275,1740870639099,-500.0,0.00024931,2]
[355021277,1740870639110,-500.0,0.00024931,2]
[355021279,1740870639120,-500.0,0.00024931,2]
[355021281,1740870639129,-500.0,0.00024931,2]
[355021283,1740870639140,-500.0,0.00024931,2]
[355021285,1740870639151,-500.0,0.00024931,2]
[355021287,1740870639162,-500.0,0.00024931,2]
[355021290,1740870639172,-500.0,0.00024931,2]
[355021293,1740870639182,-500.0,0.00024931,2]
[355021296,1740870639192,-500.0,0.00024931,2]
[355021299,1740870639201,-500.0,0.00024931,2]
[355021301,1740870639211,-411.062255,0.00024931,2]
[355021305,1740870639220,-500.0,0.00024931,2]
[355021307,1740870639230,-500.0,0.00024931,2]
[355021309,1740870639239,-500.0,0.00024931,2]
[355021311,1740870639249,-1573.23,0.00024931,2]
[355021313,1740870639259,-500.0,0.00024931,2]
[355021315,1740870639268,-2055.311274,0.00024931,2]
[355021317,1740870639278,-500.0,0.00024931,2]
[355021319,1740870639288,-500.0,0.00024931,2]
[355021321,1740870639298,-604.16,0.00024931,2]
[355021323,1740870639308,-500.0,0.00024931,2]
[355021325,1740870639317,-500.0,0.00024931,2]
[355021327,1740870639327,-507.2500645,0.00024931,2]
[355021329,1740870639338,-151.0,0.00024931,7]
[355021331,1740870639348,-500.0,0.00024931,2]
[355021333,1740870639357,-500.0,0.00024931,2]
[355021335,1740870639367,-500.0,0.00024931,2]
[355021337,1740870639377,-500.0,0.00024931,2]
[355021339,1740870639387,-500.0,0.00024931,2]
[355021341,1740870639397,-241.48456,0.00024931,2]
[355021344,1740870639406,-500.0,0.00024931,2]
[355021346,1740870639416,-500.0,0.00024931,2]
[355021348,1740870639426,-500.0,0.00024931,2]
[355021351,1740870639435,-500.0,0.00024931,2]
[355021353,1740870639445,-500.0,0.00024931,2]
[355021356,1740870639455,-598.06485673,0.00024931,2]
[355021358,1740870639464,-151.0,0.00024931,7]
[355021360,1740870639473,-292.316314,0.00024931,7]
[355021362,1740870639483,-586.462503,0.00024931,2]
[355021364,1740870639492,-500.0,0.00024931,2]
[355021366,1740870639503,-500.0,0.00024931,2]
[355021368,1740870639514,-1110.9,0.00024931,2]
[355021370,1740870639525,-500.0,0.00024931,2]
[355021372,1740870639535,-500.0,0.00024931,2]
[355021374,1740870639545,-500.0,0.00024931,2]
[355021376,1740870639556,-569.78,0.00024931,2]
[355021378,1740870639566,-151.0,0.00024931,7]
[355021380,1740870639576,-212.955029,0.00024931,7]
[355021382,1740870639586,-500.0,0.00024931,2]
[355021384,1740870639598,-877.07,0.00024931,2]
[355021386,1740870639608,-500.0,0.00024931,2]
[355021388,1740870639618,-500.0,0.00024931,2]
[355021391,1740870639629,-500.0,0.00024931,2]
[355021392,1740870639639,-500.0,0.00024931,2]
[355021394,1740870639648,-500.0,0.00024931,2]
[355021397,1740870639659,-500.0,0.00024931,2]
[355021398,1740870639669,-500.0,0.00024931,2]
[355021401,1740870639680,-500.0,0.00024931,2]
[355021402,1740870639690,-500.0,0.00024931,2]
[355021404,1740870639700,-500.0,0.00024931,2]
[355021407,1740870639711,-500.0,0.00024931,2]
[355021409,1740870639721,-500.0,0.00024931,2]
[355021411,1740870639731,-500.0,0.00024931,2]
[355021413,1740870639743,-500.0,0.00024931,2]
[355021415,1740870639753,-500.0,0.00024931,2]
[355021417,1740870639763,-500.0,0.00024931,2]
[355021419,1740870639773,-1942.15,0.00024931,2]
[355021421,1740870639783,-500.0,0.00024931,2]
[355021423,1740870639794,-500.0,0.00024931,2]
[355021425,1740870639804,-500.0,0.00024931,2]
[355021427,1740870639814,-500.0,0.00024931,2]
[355021429,1740870639825,-504.7,0.00024931,2]
[355021431,1740870639835,-500.0,0.00024931,2]
[355021433,1740870639847,-500.0,0.00024931,2]
[355021435,1740870639858,-612.55,0.00024931,2]
[355021437,1740870639869,-500.0,0.00024931,2]
[355021439,1740870639879,-500.0,0.00024931,2]
[355021441,1740870639890,-500.0,0.00024931,2]
[355021443,1740870639900,-500.0,0.00024931,2]
[355021445,1740870639910,-813.33,0.00024931,2]
[355021447,1740870639920,-440.33716654,0.00024931,2]
[355021449,1740870639930,-500.0,0.00024931,2]
[355021450,1740870639940,-500.0,0.00024931,2]
[355021453,1740870639951,-500.0,0.00024931,2]
[355021455,1740870639961,-1898.33,0.00024931,2]
[355021456,1740870639972,-500.0,0.00024931,2]
[355021459,1740870639982,-504.34,0.00024931,2]
[355021461,1740870639992,-500.0,0.00024931,2]
[355021463,1740870640004,-500.0,0.00024931,2]
[355021464,1740870640013,-500.0,0.00024931,2]
[355021466,1740870640023,-500.0,0.00024931,2]
[355021468,1740870640033,-500.0,0.00024931,2]
[355021470,1740870640043,-500.0,0.00024931,2]
[355021472,1740870640052,-500.0,0.00024931,2]
[355021474,1740870640066,-1895.85,0.00024931,2]
[355021476,1740870640086,-500.0,0.00024931,2]
[355021478,1740870640106,-641.78514443,0.00024931,2]
[355021480,1740870640116,-500.0,0.00024931,2]
[355021482,1740870640126,-500.0,0.00024931,2]
[355021484,1740870640136,-500.0,0.00024931,2]
[355021486,1740870640147,-500.0,0.00024931,2]
[355021488,1740870640159,-500.0,0.00024931,2]
[355021490,1740870640170,-500.0,0.00024931,2]
[355021492,1740870640180,-500.0,0.00024931,2]
[355021505,1740870640190,-500.0,0.00024931,2]
[355021508,1740870640324,-500.0,0.00024931,2]
[355021510,1740870640334,-1687.15,0.00024931,2]
[355021512,1740870640345,-500.0,0.00024931,2]
[355021514,1740870640356,-500.0,0.00024931,2]
[355021516,1740870640366,-500.0,0.00024931,2]
[355021518,1740870640378,-566.09,0.00024931,2]
[355021521,1740870640388,-500.0,0.00024931,2]
[355021523,1740870640398,-500.0,0.00024931,2]
[355021525,1740870640408,-500.0,0.00024931,2]
[355021527,1740870640418,-500.0,0.00024931,2]
[355021528,1740870640428,-500.0,0.00024931,2]
[355021530,1740870640438,-500.0,0.00024931,2]
[355021532,1740870640448,-500.0,0.00024931,2]
[355021534,1740870640457,-507.39,0.00024931,2]
[355021536,1740870640468,-500.0,0.00024931,2]
[355021538,1740870640477,-500.0,0.00024931,2]
[355021540,1740870640488,-524.67,0.00024931,2]
[355021542,1740870640498,-500.0,0.00024931,2]
[355021545,1740870640510,-500.0,0.00024931,2]
[355021547,1740870640520,-500.0,0.00024931,2]
[355021549,1740870640531,-500.0,0.00024931,2]
[355021551,1740870640541,-500.0,0.00024931,2]
[355021553,1740870640551,-500.0,0.00024931,2]
[355021555,1740870640561,-500.0,0.00024931,2]
[355021557,1740870640571,-151.0,0.00024931,7]
[355021559,1740870640581,-151.0,0.00024931,7]
[355021561,1740870640591,-500.0,0.00024931,2]
[355021562,1740870640601,-500.0,0.00024931,2]
[355021564,1740870640611,-500.0,0.00024931,2]
[355021567,1740870640622,-500.0,0.00024931,2]
[355021569,1740870640632,-500.0,0.00024931,2]
[355021571,1740870640642,-500.0,0.00024931,2]
[355021572,1740870640652,-500.0,0.00024931,2]
[355021574,1740870640662,-500.0,0.00024931,2]
[355021576,1740870640672,-151.0,0.00024931,7]
[355021578,1740870640681,-151.0,0.00024931,7]
[355021580,1740870640691,-151.0,0.00024931,7]
[355021582,1740870640702,-151.0,0.00024931,7]
[355021584,1740870640716,-500.0,0.00024931,2]
[355021586,1740870640726,-554.05,0.00024931,2]
[355021588,1740870640736,-500.0,0.00024931,2]
[355021590,1740870640746,-500.0,0.00024931,2]
[355021592,1740870640756,-507.92,0.00024931,2]
[355021594,1740870640766,-500.0,0.00024931,2]
[355021596,1740870640776,-994.66,0.00024931,2]
[355021598,1740870640785,-500.0,0.00024931,2]
[355021600,1740870640795,-500.0,0.00024931,2]
[355021602,1740870640806,-500.0,0.00024931,2]
[355021604,1740870640815,-500.0,0.00024931,2]
[355021606,1740870640825,-1102.93,0.00024931,2]
[355021608,1740870640834,-500.0,0.00024931,2]
[355021610,1740870640845,-2085.02,0.00024931,2]
[355021612,1740870640855,-500.0,0.00024931,2]
[355021614,1740870640865,-500.0,0.00024931,2]
[355021616,1740870640875,-500.0,0.00024931,2]
[355021618,1740870640885,-500.0,0.00024931,2]
[355021620,1740870640895,-1817.23,0.00024931,2]
[355021622,1740870640904,-500.0,0.00024931,2]
[355021624,1740870640914,-500.0,0.00024931,2]
[355021626,1740870640924,-500.0,0.00024931,2]
[355021628,1740870640933,-500.0,0.00024931,2]
[355021630,1740870640943,-500.0,0.00024931,2]
[355021632,1740870640953,-500.0,0.00024931,2]
[355021634,1740870640962,-500.0,0.00024931,2]
[355021636,1740870640972,-500.0,0.00024931,2]
[355021638,1740870640982,-560.07,0.00024931,2]
[355021640,1740870640992,-2260.68,0.00024931,2]
[355021642,1740870641002,-500.0,0.00024931,2]
[355021644,1740870641012,-2429.62,0.00024931,2]
[355021646,1740870641022,-500.0,0.00024931,2]
[355021648,1740870641031,-500.0,0.00024931,2]
[355021650,1740870641041,-500.0,0.00024931,2]
[355021652,1740870641050,-500.0,0.00024931,2]
[355021654,1740870641060,-500.0,0.00024931,2]
[355021656,1740870641072,-2040.04,0.00024931,2]
[355021658,1740870641082,-500.0,0.00024931,2]
[355021660,1740870641092,-500.0,0.00024931,2]
[355021662,1740870641103,-500.0,0.00024931,2]
[355021664,1740870641113,-500.0,0.00024931,2]
[355021666,1740870641123,-984.05,0.00024931,2]
[355021668,1740870641132,-1305.14,0.00024931,2]
[355021670,1740870641143,-2329.85,0.00024931,2]
[355021672,1740870641153,-500.0,0.00024931,2]
[355021674,1740870641163,-500.0,0.00024931,2]
[355021676,1740870641172,-500.0,0.00024931,2]
[355021678,1740870641182,-519.03,0.00024931,2]
[355021680,1740870641192,-500.0,0.00024931,2]
[355021682,1740870641201,-915.61,0.00024931,2]
[355021684,1740870641211,-3500.0,0.00024931,7]
[355021686,1740870641221,-500.0,0.00024931,2]
[355021688,1740870641230,-3500.0,0.00024931,7]
[355021690,1740870641240,-3500.0,0.00024931,7]
[355021692,1740870641249,-3500.0,0.00024931,7]
[355021694,1740870641260,-500.0,0.00024931,2]
[355021696,1740870641269,-3500.0,0.00024931,7]
[355021698,1740870641279,-528.74,0.00024931,2]
[355021700,1740870641289,-3500.0,0.00024931,7]
[355021702,1740870641299,-3500.0,0.00024931,7]
[355021704,1740870641308,-500.0,0.00024931,2]
[355021706,1740870641318,-3500.0,0.00024931,7]
[355021708,1740870641328,-653.93,0.00024931,2]
[355021710,1740870641338,-2306.77,0.00024931,2]
[355021712,1740870641347,-1646.57,0.00024931,2]
[355021714,1740870641357,-500.0,0.00024931,2]